[Event "Turkish Youth Championships 2023"]
[Site "Samsun"]
[Date "2023.05.22"]
[Round "5.16"]
[White "Yontem, Emir Fehim"]
[Black "Binboga, Yaman"]
[Result "0-1"]
[WhiteElo "1391"]
[BlackElo "1653"]
[Annotator "COMBH"]
[PlyCount "76"]
[EventDate "2023.05.19"]
[EventType "swiss"]
[EventCountry "TUR"]
[TimeControl "5400+30"]
[WhiteClock "0:04:17"]

1. d4 {[%emt 0:01:00]} Nf6 {[%emt 0:01:00]} 2. Nf3 {[%emt 0:00:00]} g6 {[%emt 0:00:00]} 3. c4 {[%emt 0:00:00]} Bg7 {[%emt 0:00:00]} 4. Nc3 {[%emt 0:00:30]} O-O {[%emt 0:00:00]} 5. e4 {[%emt 0:00:30]} d6 {[%emt 0:00:00]} 6. Be3 {[%emt 0:00:30]} Nc6 {[%emt 0:00:30]} 7. d5 {[%emt 0:02:30]} Nb8 {[%emt 0:00:30]} 8. Bd3 {[%emt 0:01:30]} a5 {[%emt 0:04:30]} 9. Qd2 {[%emt 0:01:30]} Na6 {[%emt 0:00:30]} 10. a3 {[%emt 0:00:30]} Ng4 {[%emt 0:07:30]} 11. Bg5 {[%emt 0:04:30]} Nc5 {[%emt 0:04:30]} 12. h3 {[%emt 0:06:30]} Ne5 {[%emt 0:09:30]} 13. Nxe5 {[%emt 0:00:30]} Bxe5 {[%emt 0:00:30]} 14. Bc2 {[%emt 0:08:30]} c6 {[%emt 0:03:30]} 15. Bh6 {[%emt 0:02:30]} Re8 {[%emt 0:00:30]} 16. Rb1 {[%emt 0:07:30]} a4 {[%emt 0:00:30]} 17. Be3 {[%emt 0:00:30]} cxd5 {[%emt 0:16:30]} 18. cxd5 {[%emt 0:04:30]} Bd7 {[%emt 0:02:30]} 19. f4 {[%emt 0:04:30]} Bg7 {[%emt 0:01:30]} 20. O-O {[%emt 0:00:00]} b5 {[%emt 0:00:30]} 21. f5 {[%emt 0:08:00]} Qb6 {[%emt 0:06:30]} 22. Kh1 {[%emt 0:04:30]} b4 {[%emt 0:02:30]} 23. fxg6 {[%emt 0:08:30]} hxg6 {[%emt 0:03:30]} 24. axb4 {[%emt 0:14:18]} Qxb4 {[%emt 0:00:00]} 25. Bh6 {[%emt 0:00:06]} Qd4 {[%emt 0:05:00]} 26. Qf4 {[%emt 0:00:32]} Bxh6 {[%emt 0:00:30]} 27. Qxh6 {[%emt 0:00:30]} Qg7 {[%emt 0:00:00]} 28. Qe3 {[%emt 0:01:23]} Reb8 {[%emt 0:01:00]} 29. Rfe1 {[%emt 0:08:21]} Qe5 {[%emt 0:00:30]} 30. Nd1 {[%emt 0:01:21]} Rb4 {[%emt 0:03:30]} 31. Qa3 {[%emt 0:03:22]} Rab8 {[%emt 0:00:30]} 32. Ne3 {[%emt 0:01:07]} Nxe4 {[%emt 0:03:30]} 33. Bxe4 {[%emt 0:02:58]} Rxe4 {[%emt 0:00:30]} 34. Qd3 {[%emt 0:00:00]} Rb3 {[%emt 0:00:30]} 35. Qxe4 {[%emt 0:02:11]} Qxe4 {[%emt 0:00:00]} 36. Ng4 {[%emt 0:00:09]} Rxh3+ {[%emt 0:00:00]} 37. Kg1 {[%emt 0:00:06]} Qxg4 {[%emt 0:00:30]} 38. Rxe7 {[%emt 0:00:12]} Qd4+ {[%emt 0:00:00]} 0-1

[Event "Turkish Youth Championships 2023"]
[Site "Samsun"]
[Date "2023.05.22"]
[Round "5.17"]
[White "Hasirci, Ali Eren"]
[Black "Kaynak, Deniz Can"]
[Result "0-1"]
[WhiteElo "1284"]
[BlackElo "1651"]
[Annotator "COMBH"]
[PlyCount "82"]
[EventDate "2023.05.19"]
[EventType "swiss"]
[EventCountry "TUR"]
[TimeControl "5400+30"]
[WhiteClock "0:28:00"]

1. e4 {[%emt 0:01:00]} d6 {[%emt 0:01:00]} 2. d4 {[%emt 0:00:30]} Nf6 {[%emt 0:00:30]} 3. Nc3 {[%emt 0:00:30]} e5 {[%emt 0:00:30]} 4. dxe5 {[%emt 0:00:30]} dxe5 {[%emt 0:00:30]} 5. Qxd8+ {[%emt 0:00:30]} Kxd8 {[%emt 0:00:30]} 6. Nf3 {[%emt 0:00:30]} Bd6 {[%emt 0:00:30]} 7. Bg5 {[%emt 0:00:30]} c6 {[%emt 0:00:30]} 8. Rd1 {[%emt 0:00:30]} Ke7 {[%emt 0:00:30]} 9. h3 {[%emt 0:04:30]} Be6 {[%emt 0:07:30]} 10. Bd3 {[%emt 0:04:30]} h6 {[%emt 0:06:30]} 11. Bxf6+ {[%emt 0:05:30]} gxf6 {[%emt 0:01:30]} 12. Nh4 {[%emt 0:01:30]} Rg8 {[%emt 0:03:30]} 13. g4 {[%emt 0:01:30]} Bb4 {[%emt 0:04:30]} 14. Nf5+ {[%emt 0:00:30]} Bxf5 {[%emt 0:00:30]} 15. exf5 {[%emt 0:00:30]} Bxc3+ {[%emt 0:03:30]} 16. bxc3 {[%emt 0:00:30]} Nd7 {[%emt 0:00:00]} 17. Bc4 {[%emt 0:01:30]} Nc5 {[%emt 0:00:00]} 18. Ke2 {[%emt 0:08:30]} b5 {[%emt 0:13:30]} 19. Bb3 {[%emt 0:00:30]} a5 {[%emt 0:01:30]} 20. a3 {[%emt 0:01:30]} a4 {[%emt 0:00:30]} 21. Ba2 {[%emt 0:00:30]} Ne4 {[%emt 0:00:30]} 22. Rd3 {[%emt 0:00:30]} Rgd8 {[%emt 0:04:30]} 23. Rhd1 {[%emt 0:03:30]} Rxd3 {[%emt 0:19:30]} 24. Rxd3 {[%emt 0:03:30]} Rd8 {[%emt 0:01:30]} 25. Rxd8 {[%emt 0:12:30]} Kxd8 {[%emt 0:00:30]} 26. Bxf7 {[%emt 0:00:30]} Nxc3+ {[%emt 0:00:30]} 27. Kd3 {[%emt 0:00:30]} Nb1 {[%emt 0:00:00]} 28. c4 {[%emt 0:01:30]} Nxa3 {[%emt 0:08:00]} 29. cxb5 {[%emt 0:00:00]} Nxb5 {[%emt 0:00:30]} 30. h4 {[%emt 0:01:00]} Ke7 {[%emt 0:00:30]} 31. Ba2 {[%emt 0:04:30]} Kd6 {[%emt 0:02:30]} 32. Bc4 {[%emt 0:09:30]} Kc5 {[%emt 0:06:37]} 33. Bxb5 {[%emt 0:01:30]} cxb5 {[%emt 0:00:30]} 34. Kc3 {[%emt 0:00:30]} a3 {[%emt 0:01:46]} 35. Kb3 {[%emt 0:01:30]} b4 {[%emt 0:00:09]} 36. f3 {[%emt 0:03:30]} Kd5 {[%emt 0:00:11]} 37. h5 {[%emt 0:00:30]} e4 {[%emt 0:01:16]} 38. fxe4+ {[%emt 0:00:30]} Ke5 {[%emt 0:00:00]} 39. Ka2 {[%emt 0:00:30]} Kf4 {[%emt 0:00:00]} 40. e5 {[%emt 0:00:30]} Kxe5 {[%emt 0:00:29]} 41. g5 {[%emt 0:00:30]} fxg5 {[%emt 0:00:00]} 0-1

[Event "Turkish Youth Championships 2023"]
[Site "Samsun"]
[Date "2023.05.22"]
[Round "5.18"]
[White "Gunasti, Latife Yade"]
[Black "Cicek, Bilal Emre"]
[Result "0-1"]
[WhiteElo "1456"]
[BlackElo "1600"]
[Annotator "COMBH"]
[PlyCount "153"]
[EventDate "2023.05.19"]
[EventType "swiss"]
[EventCountry "TUR"]
[TimeControl "5400+30"]
[BlackClock "0:11:25"]

1. d4 {[%emt 0:01:00]} d5 {[%emt 0:01:00]} 2. c4 {[%emt 0:00:30]} e6 {[%emt 0:00:30]} 3. Nf3 {[%emt 0:00:30]} a6 {[%emt 0:00:30]} 4. a4 {[%emt 0:00:30]} dxc4 {[%emt 0:00:30]} 5. e3 {[%emt 0:00:30]} c5 {[%emt 0:00:30]} 6. Bxc4 {[%emt 0:00:30]} cxd4 {[%emt 0:00:30]} 7. Qxd4 {[%emt 0:09:30]} Qxd4 {[%emt 0:01:30]} 8. Nxd4 {[%emt 0:00:30]} e5 {[%emt 0:00:30]} 9. Nf3 {[%emt 0:02:30]} Nc6 {[%emt 0:00:30]} 10. Nc3 {[%emt 0:03:30]} Bg4 {[%emt 0:02:30]} 11. Ng5 {[%emt 0:05:30]} Bh5 {[%emt 0:02:30]} 12. g4 {[%emt 0:04:30]} h6 {[%emt 0:03:30]} 13. h4 {[%emt 0:09:30]} Bg6 {[%emt 0:03:30]} 14. Nf3 {[%emt 0:05:30]} Bb4 {[%emt 0:10:30]} 15. Bd2 {[%emt 0:03:30]} Nge7 {[%emt 0:04:30]} 16. h5 {[%emt 0:01:30]} Bh7 {[%emt 0:02:30]} 17. Rc1 {[%emt 0:07:30]} O-O {[%emt 0:06:30]} 18. g5 {[%emt 0:04:30]} e4 {[%emt 0:01:30]} 19. Nh2 {[%emt 0:01:30]} Ne5 {[%emt 0:03:30]} 20. Be2 {[%emt 0:06:30]} hxg5 {[%emt 0:05:30]} 21. Rg1 {[%emt 0:00:30]} N7c6 {[%emt 0:00:30]} 22. Rxg5 {[%emt 0:02:30]} Be7 {[%emt 0:00:30]} 23. Rg2 {[%emt 0:02:30]} Nb4 {[%emt 0:04:30]} 24. Kf1 {[%emt 0:02:30]} Ned3 {[%emt 0:02:30]} 25. Bxd3 {[%emt 0:01:30]} Nxd3 {[%emt 0:00:30]} 26. Nd5 {[%emt 0:01:30]} Nxc1 {[%emt 0:03:30]} 27. Nxe7+ {[%emt 0:00:30]} Kh8 {[%emt 0:00:30]} 28. Bxc1 {[%emt 0:00:00]} Rfd8 {[%emt 0:00:00]} 29. Ke1 {[%emt 0:02:00]} Rd7 {[%emt 0:01:00]} 30. Ng6+ {[%emt 0:01:30]} fxg6 {[%emt 0:00:30]} 31. hxg6 {[%emt 0:00:00]} Bg8 {[%emt 0:00:30]} 32. Bd2 {[%emt 0:01:00]} Rad8 {[%emt 0:01:30]} 33. f4 {[%emt 0:00:30]} Bb3 {[%emt 0:04:30]} 34. Ng4 {[%emt 0:00:30]} Kg8 {[%emt 0:08:30]} 35. a5 {[%emt 0:01:31]} Rc7 {[%emt 0:04:30]} 36. f5 {[%emt 0:05:22]} Rc2 {[%emt 0:09:11]} 37. f6 {[%emt 0:02:20]} gxf6 {[%emt 0:01:26]} 38. Nh6+ {[%emt 0:09:06]} Kg7 {[%emt 0:00:36]} 39. Nf5+ {[%emt 0:00:08]} Kf8 {[%emt 0:02:31]} 40. Rh2 {[%emt 0:01:55]} Ke8 {[%emt 0:02:23]} 41. Rh8+ {[%emt 0:01:54]} Kd7 {[%emt 0:00:01]} 42. Rxd8+ {[%emt 0:00:16]} Kxd8 {[%emt 0:00:30]} 43. Bc3 {[%emt 0:00:30]} Rg2 {[%emt 0:00:30]} 44. Bxf6+ {[%emt 0:00:30]} Kd7 {[%emt 0:00:30]} 45. Bc3 {[%emt 0:00:30]} Rxg6 {[%emt 0:00:30]} 46. Nd4 {[%emt 0:00:30]} Bc4 {[%emt 0:00:03]} 47. Kf2 {[%emt 0:00:56]} Kd6 {[%emt 0:00:30]} 48. Nf5+ {[%emt 0:00:30]} Kc5 {[%emt 0:00:30]} 49. Ng3 {[%emt 0:00:48]} Bd5 {[%emt 0:01:11]} 50. Ne2 {[%emt 0:00:18]} Kc4 {[%emt 0:01:35]} 51. Nf4 {[%emt 0:00:07]} Rh6 {[%emt 0:00:42]} 52. Kg2 {[%emt 0:00:43]} Bc6 {[%emt 0:00:06]} 53. Bd4 {[%emt 0:00:26]} Rd6 {[%emt 0:00:54]} 54. Bc3 {[%emt 0:00:04]} Kb3 {[%emt 0:00:00]} 55. Kf2 {[%emt 0:00:18]} Rh6 {[%emt 0:01:33]} 56. Kg2 {[%emt 0:00:16]} Rh7 {[%emt 0:00:13]} 57. Bd4 {[%emt 0:00:22]} Rf7 {[%emt 0:00:33]} 58. Bc3 {[%emt 0:00:15]} Rf5 {[%emt 0:00:25]} 59. Ne6 {[%emt 0:00:35]} Rf7 {[%emt 0:00:30]} 60. Nf4 {[%emt 0:00:30]} Kc2 {[%emt 0:00:30]} 61. Kf2 {[%emt 0:00:39]} Rd7 {[%emt 0:00:30]} 62. Ne2 {[%emt 0:02:24]} Rd3 {[%emt 0:00:58]} 63. Be5 {[%emt 0:00:42]} Rd1 {[%emt 0:00:32]} 64. Nd4+ {[%emt 0:00:12]} Kd3 {[%emt 0:00:33]} 65. Nxc6 {[%emt 0:01:31]} bxc6 {[%emt 0:00:30]} 66. Bd4 {[%emt 0:00:00]} Rd2+ {[%emt 0:00:15]} 67. Kg3 {[%emt 0:00:03]} Rc2 {[%emt 0:00:00]} 68. Kf4 {[%emt 0:00:03]} c5 {[%emt 0:00:00]} 69. Be5 {[%emt 0:00:01]} Rf2+ {[%emt 0:00:16]} 70. Kg4 {[%emt 0:00:30]} Kxe3 {[%emt 0:00:30]} 71. Bd6 {[%emt 0:00:00]} Rc2 {[%emt 0:00:00]} 72. b4 {[%emt 0:00:39]} cxb4 {[%emt 0:00:00]} 73. Bxb4 {[%emt 0:00:11]} Kd3 {[%emt 0:00:00]} 74. Kf5 {[%emt 0:00:30]} e3 {[%emt 0:00:00]} 75. Ke5 {[%emt 0:00:00]} e2 {[%emt 0:00:00]} 76. Kd5 {[%emt 0:00:00]} Rd2 {[%emt 0:00:00]} 77. Ke5 {[%emt 0:00:36]} 0-1

[Event "Turkish Youth Championships 2023"]
[Site "Samsun"]
[Date "2023.05.22"]
[Round "6.1"]
[White "Isik, Alparslan"]
[Black "Kavri, Yusuf Eren"]
[Result "1-0"]
[WhiteElo "2451"]
[BlackElo "2029"]
[PlyCount "67"]
[EventDate "2023.05.19"]
[EventType "swiss"]
[EventCountry "TUR"]
[TimeControl "5400+30"]

1. d4 {[%emt 0:03:00]} d5 {[%emt 0:01:00]} 2. Nf3 {[%emt 0:00:30]} Nf6 {[%emt 0:00:30]} 3. c4 {[%emt 0:00:30]} e6 {[%emt 0:00:30]} 4. Nc3 {[%emt 0:00:30]} Be7 {[%emt 0:00:30]} 5. Bf4 {[%emt 0:00:30]} O-O {[%emt 0:00:30]} 6. a3 {[%emt 0:00:30]} c6 {[%emt 0:00:30]} 7. e3 {[%emt 0:00:00]} Nbd7 {[%emt 0:00:30]} 8. Qc2 {[%emt 0:00:00]} h6 {[%emt 0:03:30]} 9. h3 {[%emt 0:00:30]} a5 {[%emt 0:08:30]} 10. Bd3 {[%emt 0:01:30]} dxc4 {[%emt 0:01:30]} 11. Bxc4 {[%emt 0:00:30]} Nd5 {[%emt 0:00:30]} 12. Bg3 {[%emt 0:01:30]} b5 {[%emt 0:01:30]} 13. Bd3 {[%emt 0:01:30]} Ba6 {[%emt 0:03:30]} 14. O-O {[%emt 0:14:30]} Nxc3 {[%emt 0:06:30]} 15. bxc3 {[%emt 0:12:30]} c5 {[%emt 0:03:30]} 16. Rfd1 {[%emt 0:02:30]} c4 {[%emt 0:12:30]} 17. Be2 {[%emt 0:02:30]} Rc8 {[%emt 0:05:30]} 18. e4 {[%emt 0:04:30]} Qb6 {[%emt 0:02:30]} 19. d5 {[%emt 0:05:30]} exd5 {[%emt 0:02:30]} 20. exd5 {[%emt 0:00:30]} Bf6 {[%emt 0:01:30]} 21. Rab1 {[%emt 0:03:30]} Rfe8 {[%emt 0:04:30]} 22. Nd4 {[%emt 0:01:30]} Qc5 {[%emt 0:02:30]} 23. Bg4 {[%emt 0:00:30]} Rcd8 {[%emt 0:02:30]} 24. Nc6 {[%emt 0:01:30]} Nb6 {[%emt 0:02:30]} 25. Nxd8 {[%emt 0:01:30]} Rxd8 {[%emt 0:00:30]} 26. d6 {[%emt 0:00:30]} g6 {[%emt 0:00:30]} 27. d7 {[%emt 0:00:30]} h5 {[%emt 0:00:30]} 28. Bd6 {[%emt 0:05:30]} Qg5 {[%emt 0:20:54]} 29. f4 {[%emt 0:04:30]} Qh4 {[%emt 0:00:01]} 30. Be6 {[%emt 0:00:30]} Qg3 {[%emt 0:05:10]} 31. Bc7 {[%emt 0:00:30]} fxe6 {[%emt 0:07:44]} 32. Bxb6 {[%emt 0:00:30]} Kg7 {[%emt 0:00:09]} 33. Bxa5 {[%emt 0:01:30]} Bb7 {[%emt 0:00:32]} 34. Qf2 1-0

[Event "Turkish Youth Championships 2023"]
[Site "Samsun"]
[Date "2023.05.22"]
[Round "6.2"]
[White "Engin, Onur Cinar"]
[Black "Eroz, Enis"]
[Result "1-0"]
[WhiteElo "1922"]
[BlackElo "1830"]
[Annotator "TA"]
[PlyCount "45"]
[EventDate "2023.05.19"]
[EventType "swiss"]
[EventCountry "TUR"]
[TimeControl "5400+30"]

{[%evp 9,45,74,114,113,156,166,151,154,168,149,234,222,347,353,342,352,870,818,1037,1032,886,782,800,613,610,615,612,622,618,637,608,631,625,614,598,598,29960,10240]} 1. e4 {[%emt 0:01:00]} g6 {[%emt 0:02:00]} 2. d4 {[%emt 0:00:30]} Bg7 {[%emt 0:00:30]} 3. Nc3 {[%emt 0:01:30]} d6 {[%emt 0:02:30]} 4. f4 {[%emt 0:00:30]} Nh6 {[%emt 0:03:30]} 5. Nf3 {[%emt 0:02:30]} Bg4 {[%emt 0:05:30]} 6. Be3 {[%emt 0:02:30] B06: Modern Defence.} Nd7 {[%emt 0:10:30]} 7. h3 {[%emt 0:07:30]} Bxf3 {[%emt 0:00:30]} 8. Qxf3 {[%emt 0:00:30] White is clearly better.} c5 {[%emt 0:03:30] [#]} 9. O-O-O $146 {[%emt 0:07:30]} ({Predecessor:} 9. dxc5 Qa5 10. Bf2 Nxc5 11. Bb5+ Kf8 12. Bxc5 Bxc3+ 13. Qxc3 Qxc3+ 14. bxc3 dxc5 15. O-O-O {1-0 Van de Oudeweetering,A (2325)-Pieterse,G (2385) NED-chT 9495 1994 (3)}) 9... Qa5 {[%emt 0:09:30]} (9... O-O $16 {was worth a try.} 10. dxc5 Rc8) 10. g4 $18 {[%emt 0:05:30]} O-O-O {[%emt 0:08:30]} (10... cxd4 $142 11. Bxd4 Bxd4) 11. g5 {[%emt 0:11:30]} Ng8 {[%emt 0:01:30]} 12. e5 {[%emt 0:00:30]} cxd4 $2 {[%emt 0:06:30] [#]} (12... d5 13. Nxd5 Nb8) 13. Bg2 $1 {[%emt 0:03:30][%csl Gg2][%cal Rf3b7]} Qa6 {[%emt 0:03:30]} (13... Nc5 14. Rxd4) 14. Rxd4 {[%emt 0:03:30]} Nc5 {[%emt 0:08:30] [#]} 15. Na4 $1 {[%emt 0:08:30][%mdl 512] Hoping for Nxc5.} Qc6 {[%emt 0:09:30]} (15... Ne6 16. Rb4) 16. Qg4+ {[%emt 0:06:30]} Qd7 {[%emt 0:01:30]} 17. Nxc5 {[%emt 0:00:00][%mdl 64] Pin} Qxg4 {[%emt 0:00:00]} 18. Bxb7+ {[%emt 0:00:00] This pair of bishops is nice.} Kc7 {[%emt 0:00:00]} 19. hxg4 {[%emt 0:00:30]} dxc5 {[%emt 0:00:30]} 20. Rxd8 {[%emt 0:00:30]} Kxd8 {[%emt 0:00:30]} 21. Bxc5 {[%emt 0:00:00]} h6 {[%emt 0:00:30]} 22. gxh6 {[%emt 0:01:00][%cal Bg5h6,Bh6g7][%mdl 32]} g5 {[%emt 0:01:30]} 23. hxg7 {White took control after the opening. Artfully played by Engin.   Weighted Error Value: White=0.29 (precise) /Black=1.00} 1-0

[Event "Turkish Youth Championships 2023"]
[Site "Samsun"]
[Date "2023.05.22"]
[Round "6.3"]
[White "Temizer, Umut"]
[Black "Akbas, Umut Ata"]
[Result "0-1"]
[WhiteElo "1973"]
[BlackElo "2417"]
[PlyCount "68"]
[EventDate "2023.05.19"]
[EventType "swiss"]
[EventCountry "TUR"]
[TimeControl "5400+30"]

1. e4 {[%emt 0:03:00]} e5 {[%emt 0:03:00]} 2. Nf3 {[%emt 0:01:30]} Nc6 {[%emt 0:00:30]} 3. Bb5 {[%emt 0:00:30]} a6 {[%emt 0:00:30]} 4. Ba4 {[%emt 0:00:30]} Nf6 {[%emt 0:00:30]} 5. Qe2 {[%emt 0:00:30]} b5 {[%emt 0:00:00]} 6. Bb3 {[%emt 0:00:30]} Bc5 {[%emt 0:00:00]} 7. d3 {[%emt 0:01:30]} O-O {[%emt 0:00:30]} 8. c3 {[%emt 0:04:30]} h6 {[%emt 0:07:30]} 9. h3 {[%emt 0:03:30]} d6 {[%emt 0:03:30]} 10. Nbd2 {[%emt 0:02:30]} Ne7 {[%emt 0:10:30]} 11. d4 {[%emt 0:16:30]} exd4 {[%emt 0:00:30]} 12. cxd4 {[%emt 0:00:30]} Bb6 {[%emt 0:01:30]} 13. O-O {[%emt 0:02:30]} Ng6 {[%emt 0:02:30]} 14. a4 {[%emt 0:05:30]} Bb7 {[%emt 0:03:30]} 15. Re1 {[%emt 0:07:30]} Qd7 {[%emt 0:09:30]} 16. Bc2 {[%emt 0:04:30]} Rae8 {[%emt 0:05:30]} 17. Qf1 {[%emt 0:04:30]} c5 {[%emt 0:05:30]} 18. axb5 {[%emt 0:05:30]} axb5 {[%emt 0:00:30]} 19. b3 {[%emt 0:03:30]} Nf4 {[%emt 0:06:30]} 20. Bb2 {[%emt 0:01:30]} Rc8 {[%emt 0:05:30]} 21. d5 {[%emt 0:02:30]} N6h5 {[%emt 0:09:30]} 22. Nh4 {[%emt 0:06:30]} c4 {[%emt 0:00:30]} 23. Re3 {[%emt 0:02:40]} Bxe3 {[%emt 0:04:30]} 24. fxe3 {[%emt 0:00:20]} c3 {[%emt 0:00:44]} 25. Ba3 {[%emt 0:00:30]} Ng3 {[%emt 0:02:32]} 26. Qf3 {[%emt 0:00:30]} cxd2 {[%emt 0:02:01]} 27. Bd1 {[%emt 0:00:30]} Nfh5 {[%emt 0:00:00]} 28. Bb4 {[%emt 0:02:07]} Qe7 {[%emt 0:01:57]} 29. Ra7 {[%emt 0:02:05]} Qxh4 {[%emt 0:01:06]} 30. Rxb7 {[%emt 0:00:21]} Qxe4 {[%emt 0:00:53]} 31. Bxd2 {[%emt 0:00:37]} Qd3 {[%emt 0:01:14]} 32. Be1 {[%emt 0:00:49]} Rc1 {[%emt 0:00:19]} 33. Bxg3 {[%emt 0:00:35]} Qxd1+ {[%emt 0:00:36]} 34. Kh2 {[%emt 0:00:30]} Qh1# 0-1

[Event "Turkish Youth Championships 2023"]
[Site "Samsun"]
[Date "2023.05.22"]
[Round "6.4"]
[White "Tarlabasi, Emirhan"]
[Black "Kurtyilmaz, Kuzey"]
[Result "1-0"]
[WhiteElo "2300"]
[BlackElo "1608"]
[Annotator "TA"]
[PlyCount "45"]
[EventDate "2023.05.19"]
[EventType "swiss"]
[EventCountry "TUR"]
[TimeControl "5400+30"]

{[%evp 15,45,22,30,18,44,35,112,97,140,114,190,181,174,179,176,175,164,106,95,89,208,211,264,269,521,518,533,533,525,522,679,562]} 1. d4 {[%emt 0:01:00]} d5 {[%emt 0:01:00]} 2. c4 {[%emt 0:01:30]} dxc4 {[%emt 0:00:30]} 3. e3 {[%emt 0:00:30]} Nf6 {[%emt 0:00:30]} 4. Nf3 {[%emt 0:00:30]} e6 {[%emt 0:00:30]} 5. Bxc4 {[%emt 0:00:30]} c5 {[%emt 0:00:30]} 6. O-O {[%emt 0:00:30]} cxd4 {[%emt 0:00:30]} 7. exd4 {[%emt 0:00:30]} Nc6 {[%emt 0:00:30]} 8. Nc3 {[%emt 0:00:30]} Be7 {[%emt 0:00:00]} 9. Qe2 {[%emt 0:10:30] [#] D26: Queen's Gambit Accepted: 4 e3 e6 5 Bxc5 c5 sidelines.} Na5 $146 {[%emt 0:01:00]} ({Predecessor:} 9... O-O 10. Rd1 Nd5 11. Qe4 Nf6 12. Qh4 Nd5 13. Qh3 e5 14. Qg3 Nxc3 15. bxc3 e4 16. Bh6 Bf6 17. Ne5 Ne7 18. Bd2 Nd5 19. Bxd5 Qxd5 {½-½ Korobov,A (2687)-Zubov,A (2597) Netanya op 2019 (9)}) 10. Bd3 {[%emt 0:06:30]} b6 {[%emt 0:02:30]} (10... O-O $14) 11. Bg5 $16 {[%emt 0:08:30][%cal Od4d5] White is better.} h6 {[%emt 0:00:30]} 12. Bh4 {[%emt 0:04:30] White is more active.} Bd7 {[%emt 0:07:30]} (12... Bb7 $16) 13. Ne5 {[%emt 0:05:30][%cal Od4d5]} Nc6 {[%emt 0:12:30]} 14. Bxf6 {[%emt 0:08:30]} Bxf6 {[%emt 0:00:30] Black is weak on the light squares} 15. Nxd7 {[%emt 0:00:30]} Qxd7 {[%emt 0:00:30]} 16. d5 {[%emt 0:00:30]} (16. Rad1 $18) 16... Nd4 {[%emt 0:00:30]} 17. Qe4 $36 {[%emt 0:00:30][%mdl 2048] [#] Hoping for dxe6. White is on the roll.} Rc8 {[%emt 0:03:30]} (17... Rd8 $16) 18. Rad1 {[%emt 0:01:30] Strongly threatening Ba6.} Kf8 {[%emt 0:07:30]} 19. Ba6 {[%emt 0:03:30][%csl LRc8,LRd4]} Rxc3 {[%emt 0:01:30]} (19... Rd8 20. Rxd4 Bxd4) 20. bxc3 $18 {[%emt 0:00:30][%cal Bb2c3,Bc3c4][%mdl 32] White is clearly winning.} exd5 {[%emt 0:00:30]} 21. Rxd4 {[%emt 0:00:30]} Bxd4 {[%emt 0:00:30]} 22. Qxd4 {[%emt 0:00:30] [#] aiming for Re1.} Qc6 {[%emt 0:00:30]} 23. c4 {Weighted Error Value: White=0.09 (flawless) /Black=0.74} 1-0

[Event "Turkish Youth Championships 2023"]
[Site "Samsun"]
[Date "2023.05.22"]
[Round "6.5"]
[White "Atis, Hasan"]
[Black "Cilek, Bora"]
[Result "0-1"]
[WhiteElo "1890"]
[BlackElo "2285"]
[Annotator "TA"]
[PlyCount "90"]
[EventDate "2023.05.19"]
[EventType "swiss"]
[EventCountry "TUR"]
[TimeControl "5400+30"]

{[%evp 21,90,15,17,9,16,0,0,0,22,0,13,14,10,0,0,0,0,-8,-12,-31,-8,-13,-12,-39,0,0,0,-20,0,-20,-17,-12,-8,-21,-8,-33,-39,-189,-202,-201,-165,-161,-164,-166,-182,-202,-197,-202,-186,-176,-179,-174,-178,-171,-170,-233,-199,-199,-198,-274,-272,-417,-366,-364,-359,-389,-366,-401,-385,-419,-382]} 1. e4 {[%emt 0:01:00]} e6 {[%emt 0:03:00]} 2. d4 {[%emt 0:00:30]} d5 {[%emt 0:00:30]} 3. Nd2 {[%emt 0:00:30]} dxe4 {[%emt 0:00:30]} 4. Nxe4 {[%emt 0:00:30]} Bd7 {[%emt 0:00:30]} 5. Nf3 {[%emt 0:00:30]} Bc6 {[%emt 0:00:00]} 6. Bd3 {[%emt 0:00:30]} Nd7 {[%emt 0:00:00]} 7. Qe2 {[%emt 0:00:30]} Ngf6 {[%emt 0:00:30]} 8. Ned2 {[%emt 0:03:30]} Be7 {[%emt 0:00:30]} 9. O-O {[%emt 0:00:30]} O-O {[%emt 0:00:30]} 10. c4 {[%emt 0:01:30]} b6 {[%emt 0:04:30]} 11. b3 {[%emt 0:01:30]} Bb7 {[%emt 0:00:30]} 12. Bb2 {[%emt 0:00:00] C10: French with 3 Nc3: Unusual Black 3rd moves and 3...dxe4.} c5 {[%emt 0:00:30]} 13. Rad1 {[%emt 0:02:00]} cxd4 {[%emt 0:04:30] has lost popularity (13...Re8).} 14. Nxd4 {[%emt 0:00:30] [#] The position is equal.} Nc5 $146 {[%emt 0:07:30] Repels Ne4. ...Nxd3 would be deadly.} ({Predecessor:} 14... Re8 15. N2f3 Nf8 16. Bb1 Qc7 17. Nb5 Qc6 18. Qe5 Rec8 19. Qg3 Ng6 20. Ne5 Nxe5 21. Bxe5 {1-0 Mamedov,R (2703)-Demidov,M (2520) EU-ch blitz Skopje 2018 (22)}) 15. Bb1 {[%emt 0:00:30]} Qc7 {[%emt 0:04:30]} 16. Rfe1 {[%emt 0:04:30]} Rfe8 {[%emt 0:08:30]} 17. Nf1 {[%emt 0:01:30]} a6 {[%emt 0:10:30]} 18. Ng3 {[%emt 0:07:30]} Rad8 {[%emt 0:05:30]} 19. Qc2 {[%emt 0:05:30]} Ncd7 {[%emt 0:03:30][%cal Bc5d7,Bd7f8,Bf8g6,Bg6f4,Bf4g2][%mdl 32]} 20. Qc3 {[%emt 0:19:30]} Nf8 {[%emt 0:01:30]} 21. Nf3 {[%emt 0:02:30]} b5 {[%emt 0:07:30]} 22. Ne5 {[%emt 0:07:30]} bxc4 {[%emt 0:00:30]} 23. Nxc4 {[%emt 0:00:30]} Ng6 {[%emt 0:01:30]} 24. Rc1 {[%emt 0:02:30]} Rd7 {[%emt 0:04:30]} 25. Red1 {[%emt 0:14:30]} Red8 {[%emt 0:04:30]} 26. Rxd7 {[%emt 0:00:30]} Qxd7 $40 {[%emt 0:00:30][%mdl 128] Black attacks.} 27. Re1 {[%emt 0:06:23]} (27. Nb6 $5 {[%cal Rb6d7]} Qd6 28. Nc4 $11) 27... Qc7 {[%emt 0:10:01]} 28. h3 {[%emt 0:02:35]} Nf4 {[%emt 0:03:40]} 29. Ne4 {[%emt 0:00:50] [#] This move loses the game for White.} (29. Qc2 $15) 29... Rd1 $3 $19 {[%emt 0:03:14][%mdl 576] Deflection} 30. Ng3 {[%emt 0:07:31] Against Ne2+} Rxe1+ {[%emt 0:02:09]} 31. Qxe1 {[%emt 0:00:30]} Nxg2 {[%emt 0:00:30]} ({Don't do} 31... Bxg2 32. Be5 Qc6 33. Bxf4 $18) 32. Qa5 {[%emt 0:00:30]} Qd7 {[%emt 0:00:30] ( -> ...Qd1+)} 33. Qd2 {[%emt 0:00:30] Prevents Qd1+} Qxd2 {[%emt 0:00:30]} 34. Nxd2 {[%emt 0:00:30]} Nf4 {[%emt 0:00:30] Against Ne2} 35. Kh2 {[%emt 0:00:30]} Nd7 {[%emt 0:00:30]} 36. Nc4 {[%emt 0:00:26]} f5 {[%emt 0:05:55]} 37. Bc1 {[%emt 0:01:19]} Ng6 {[%emt 0:00:03]} 38. f4 {[%emt 0:01:36]} (38. Bd3 {was called for.}) 38... Bd8 {[%emt 0:01:11]} 39. Ne2 {[%emt 0:00:42]} Bc7 {[%emt 0:00:30]} 40. Kg3 {[%emt 0:00:00]} (40. Nb2 $142) 40... Nf6 {[%emt 0:00:00][%cal Og6f4]} 41. Nd4 {[%emt 0:01:11]} (41. Kf2 $142) 41... Nh5+ {[%emt 0:00:30] Black is winning.} 42. Kf2 {[%emt 0:00:39]} Nhxf4 {[%emt 0:00:15]} 43. h4 {[%emt 0:00:00]} Bd5 {[%emt 0:01:50]} (43... Nxh4 $2 {perishes.} 44. Bxf4 Bxf4 45. Nxe6 $19) 44. Ne3 {[%emt 0:00:30]} Bb6 {[%emt 0:00:10]} ({Not} 44... Nxh4 45. Nxd5 exd5 46. Bxf4 Bxf4 47. Nxf5 Nxf5 48. Bxf5 $17) 45. Bb2 {[%emt 0:00:30]} Nxh4 {Weighted Error Value: White=0.26 (precise) /Black=0.08 (flawless)} 0-1